fUST/lending_fUST_20250603
["ID","MTS","AMOUNT","RATE_DAILY","PERIOD"]
[363895651,1748915439734,-439.60453529,0.00016438,2]
[363895653,1748915439743,-440.0,0.00016438,2]
[363895654,1748915439752,-1385.9,0.00016438,2]
[363895656,1748915439762,-440.0,0.00016438,2]
[363895659,1748915439771,-480.33854591,0.00016438,2]
[363895660,1748915439781,-440.0,0.00016438,2]
[363895662,1748915439793,-440.0,0.00016438,2]
[363895664,1748915439802,-440.0,0.00016438,2]
[363895666,1748915439811,-440.0,0.00016438,2]
[363895668,1748915439820,-443.0454505,0.00016438,2]
[363895669,1748915439830,-433.27700511,0.00016438,2]
[363895671,1748915439840,-299.27399977,0.00016438,2]
[363895673,1748915439849,-440.0,0.00016438,2]
[363895675,1748915439858,-434.91056021,0.00016438,2]
[363895677,1748915439869,-440.0,0.00016438,2]
[363895679,1748915439878,-1505.24,0.00016438,2]
[363895680,1748915439887,-573.34,0.00016438,2]
[363895682,1748915439898,-437.73271007,0.00016438,2]
[363895684,1748915439907,-440.0,0.00016438,2]
[363895686,1748915439918,-233.72464372,0.00016438,2]
[363895688,1748915439928,-374.44022744,0.00016438,2]
[363895690,1748915439937,-440.0,0.00016438,2]
[363895692,1748915439946,-440.0,0.00016438,2]
[363895694,1748915439956,-440.0,0.00016438,2]
[363895696,1748915439967,-440.0,0.00016438,2]
[363895698,1748915439977,-440.96186508,0.00016438,2]
[363895700,1748915439986,-440.0,0.00016438,2]
[363895702,1748915439996,-440.0,0.00016438,2]
[363895704,1748915440005,-440.0,0.00016438,2]
[363895706,1748915440014,-440.0,0.00016438,2]
[363895708,1748915440024,-434.05174181,0.00016438,2]
[363895710,1748915440033,-440.0,0.00016438,2]
[363895712,1748915440042,-1737.27,0.00016438,2]
[363895714,1748915440052,-444.19847874,0.00016438,2]
[363895716,1748915440061,-440.0,0.00016438,2]
[363895718,1748915440071,-443.15742046,0.00016438,2]
[363895719,1748915440080,-490.89,0.00016438,2]
[363895720,1748915440090,-432.17482664,0.00016438,2]
[363895722,1748915440099,-441.06734168,0.00016438,2]
[363895724,1748915440108,-1368.96,0.00016438,2]
[363895726,1748915440118,-440.0,0.00016438,2]
[363895728,1748915440127,-1273.02,0.00016438,2]
[363895730,1748915440136,-440.0,0.00016438,2]
[363895732,1748915440147,-441.50373377,0.00016438,2]
[363895734,1748915440157,-440.0,0.00016438,2]
[363895736,1748915440167,-439.06994629,0.00016438,2]
[363895738,1748915440176,-465.53948008,0.00016438,2]
[363895740,1748915440185,-440.0,0.00016438,2]
[363895742,1748915440195,-440.0,0.00016438,2]
[363895744,1748915440204,-440.0,0.00016438,2]
[363895746,1748915440213,-484.05,0.00016438,2]
[363895748,1748915440222,-441.25242609,0.00016438,2]
[363895750,1748915440232,-440.0,0.00016438,2]
[363895752,1748915440241,-2793.2,0.00016438,2]
[363895754,1748915440250,-440.0,0.00016438,2]
[363895756,1748915440260,-440.0,0.00016438,2]
[363895757,1748915440269,-430.0,0.00016438,2]
[363895758,1748915440279,-1600.29,0.00016438,2]
[363895759,1748915440288,-747.1,0.00016438,2]
[363895760,1748915440298,-440.0,0.00016438,2]
[363895761,1748915440307,-440.0,0.00016438,2]
[363895762,1748915440316,-504.15156712,0.00016438,2]
[363895763,1748915440326,-500.0,0.00016711,2]
[363895764,1748915440336,-500.0,0.00016711,2]
[363895765,1748915440345,-597.3109701,0.00016711,2]
[363895766,1748915440355,-500.0,0.00016711,2]
[363895767,1748915440365,-500.0,0.00016711,2]
[363895768,1748915440374,-176.37316151,0.00016711,2]
[363895769,1748915440384,-500.0,0.00016711,2]
[363895770,1748915440393,-500.0,0.00016711,2]
[363895771,1748915440404,-205.049756,0.00016711,2]
[363895772,1748915440414,-500.0,0.00016711,2]
[363895773,1748915440424,-500.0,0.00016711,2]
[363895774,1748915440434,-500.0,0.00016711,2]
[363895775,1748915440443,-500.0,0.00016711,2]
[363895776,1748915440453,-500.0,0.00016711,2]
[363895777,1748915440464,-500.0,0.00016711,2]
[363895778,1748915440473,-500.0,0.00016711,2]
[363895779,1748915440483,-500.0,0.00016711,2]
[363895780,1748915440492,-500.0,0.00016711,2]
[363895781,1748915440501,-487.86608391,0.00016711,2]
[363895782,1748915440511,-500.0,0.00016711,2]
[363895783,1748915440521,-500.0,0.00016711,2]
[363895784,1748915440531,-515.78172546,0.00016711,2]
[363895785,1748915440541,-500.0,0.00016711,2]
[363895786,1748915440550,-500.0,0.00016711,2]
[363895787,1748915440559,-518.56026047,0.00016711,2]
[363895788,1748915440568,-500.0,0.00016711,2]
[363895789,1748915440577,-500.0,0.00016711,2]
[363895790,1748915440587,-500.0,0.00016711,2]
[363895791,1748915440596,-500.0,0.00016711,2]
[363895792,1748915440607,-500.0,0.00016711,2]
[363895793,1748915440616,-500.0,0.00016711,2]
[363895794,1748915440627,-429.76984934,0.00016711,2]
[363895795,1748915440636,-500.0,0.00016711,2]
[363895796,1748915440645,-500.0,0.00016711,2]
[363895797,1748915440655,-500.0,0.00016711,2]
[363895798,1748915440664,-500.0,0.00016711,2]
[363895799,1748915440674,-500.0,0.00016711,2]
[363895801,1748915440683,-459.7042924,0.00016711,2]
[363895803,1748915440693,-500.0,0.00016711,2]
[363895805,1748915440702,-500.0,0.00016711,2]
[363895807,1748915440711,-500.0,0.00016711,2]
[363895809,1748915440721,-500.0,0.00016711,2]
[363895811,1748915440730,-500.0,0.00016711,2]
[363895813,1748915440740,-500.0,0.00016711,2]
[363895815,1748915440749,-500.0,0.00016711,2]
[363895817,1748915440758,-500.0,0.00016711,2]
[363895819,1748915440767,-180.0,0.00016711,2]
[363895821,1748915440776,-500.0,0.00016711,2]
[363895823,1748915440787,-500.0,0.00016711,2]
[363895825,1748915440799,-500.0,0.00016711,2]
[363895827,1748915440808,-440.0,0.00016712,2]
[363895829,1748915440817,-577.33748749,0.00016712,2]
[363895831,1748915440826,-440.0,0.00016712,2]
[363895833,1748915440836,-440.0,0.00016712,2]
[363895835,1748915440845,-445.0293888,0.00016712,2]
[363895837,1748915440854,-440.0,0.00016712,2]
[363895839,1748915440863,-440.0,0.00016712,2]
[363895841,1748915440873,-440.0,0.00016712,2]
[363895843,1748915440883,-440.0,0.00016712,2]
[363895845,1748915440892,-440.0,0.00016712,2]
[363895847,1748915440902,-410.15122475,0.00016712,2]
[363895849,1748915440912,-262.5476667,0.00016712,2]
[363895851,1748915440921,-440.0,0.00016712,2]
[363895853,1748915440930,-440.0,0.00016712,2]
[363895855,1748915440939,-563.32927075,0.00016712,2]
[363895857,1748915440949,-528.72962199,0.00016712,2]
[363895859,1748915440958,-440.5104587,0.00016712,2]
[363895861,1748915440967,-440.0,0.00016712,2]
[363895863,1748915440976,-440.0,0.00016712,2]
[363895865,1748915440985,-451.95562716,0.00016712,2]
[363895867,1748915440994,-440.0,0.00016712,2]
[363895869,1748915441004,-440.0,0.00016712,2]
[363895871,1748915441013,-440.0,0.00016712,2]
[363895873,1748915441022,-440.0,0.00016712,2]
[363895875,1748915441031,-440.0,0.00016712,2]
[363895877,1748915441040,-440.0,0.00016712,2]
[363895879,1748915441050,-3072.97,0.00016712,2]
[363895881,1748915441060,-432.3327829,0.00016712,2]
[363895883,1748915441069,-440.0,0.00016712,2]
[363895885,1748915441079,-440.0,0.00016712,2]
[363895887,1748915441088,-440.0,0.00016712,2]
[363895889,1748915441098,-440.0,0.00016712,2]
[363895891,1748915441108,-440.0,0.00016712,2]
[363895893,1748915441116,-673.12,0.00016712,2]
[363895895,1748915441125,-440.0,0.00016712,2]
[363895897,1748915441135,-403.9587914,0.00016712,2]
[363895899,1748915441144,-430.8842493,0.00016712,2]
[363895901,1748915441155,-440.0,0.00016712,2]
[363895903,1748915441165,-440.0,0.00016712,2]
[363895905,1748915441175,-1140.48,0.00016712,2]
[363895907,1748915441184,-440.0,0.00016712,2]
[363895909,1748915441193,-1166.26,0.00016712,2]
[363895911,1748915441202,-1327.55,0.00016712,2]
[363895913,1748915441215,-440.0,0.00016712,2]
[363895914,1748915441224,-440.0,0.00016712,2]
[363895917,1748915441234,-2891.61,0.00016712,2]
[363895919,1748915441243,-440.0,0.00016712,2]
[363895921,1748915441252,-820.65,0.00016712,2]
[363895923,1748915441261,-434.26369834,0.00016712,2]
[363895925,1748915441271,-440.0,0.00016712,2]
[363895926,1748915441280,-423.09322493,0.00016712,2]
[363895928,1748915441289,-1856.38,0.00016712,2]
[363895931,1748915441299,-440.0,0.00016712,2]
[363895933,1748915441309,-440.0,0.00016712,2]
[363895935,1748915441318,-441.74485722,0.00016712,2]
[363895937,1748915441327,-487.61,0.00016712,2]
[363895939,1748915441336,-425.25588736,0.00016712,2]
[363895941,1748915441345,-341.56649641,0.00016712,2]
[363895943,1748915441355,-440.0,0.00016712,2]
[363895945,1748915441363,-440.0,0.00016712,2]
[363895947,1748915441373,-1499.33,0.00016712,2]
[363895949,1748915441382,-3772.31,0.00016712,2]
[363895951,1748915441392,-578.77,0.00016712,2]
[363895953,1748915441402,-426.95083179,0.00016712,2]
[363895955,1748915441412,-2565.31,0.00016712,2]
[363895957,1748915441421,-396.48702145,0.00016712,2]
[363895959,1748915441430,-436.21154462,0.00016712,2]
[363895961,1748915441440,-440.0,0.00016712,2]
[363895963,1748915441449,-929.64,0.00016712,2]
[363895965,1748915441458,-1474.4,0.00016712,2]
[363895967,1748915441467,-440.0,0.00016712,2]
[363895969,1748915441477,-617.96,0.00016712,2]
[363895971,1748915441486,-440.0,0.00016712,2]
[363895973,1748915441495,-440.0,0.00016712,2]
[363895975,1748915441503,-440.0,0.00016712,2]
[363895977,1748915441512,-440.0,0.00016712,2]
[363895979,1748915441521,-440.0,0.00016712,2]
[363895981,1748915441531,-1385.9,0.00016712,2]
[363895983,1748915441540,-440.31991101,0.00016712,2]
[363895985,1748915441550,-440.0,0.00016712,2]
[363895987,1748915441559,-440.0,0.00016712,2]
[363895989,1748915441568,-329.47771647,0.00016712,2]
[363895991,1748915441577,-440.0,0.00016712,2]
[363895993,1748915441587,-440.0,0.00016712,2]
[363895995,1748915441596,-440.0,0.00016712,2]
[363895997,1748915441606,-1505.24,0.00016712,2]
[363895999,1748915441615,-573.34,0.00016712,2]
[363896001,1748915441624,-440.0,0.00016712,2]
[363896003,1748915441634,-440.0,0.00016712,2]
[363896005,1748915441644,-440.0,0.00016712,2]
[363896007,1748915441654,-440.0,0.00016712,2]
[363896009,1748915441664,-439.26708582,0.00016712,2]
[363896011,1748915441673,-440.0,0.00016712,2]
[363896013,1748915441682,-433.08492769,0.00016712,2]
[363896015,1748915441692,-440.0,0.00016712,2]
[363896017,1748915441701,-440.0,0.00016712,2]
[363896019,1748915441710,-440.0,0.00016712,2]
[363896021,1748915441720,-1737.27,0.00016712,2]
[363896023,1748915441729,-440.0,0.00016712,2]
[363896025,1748915441738,-490.89,0.00016712,2]
[363896027,1748915441747,-1368.96,0.00016712,2]
[363896029,1748915441756,-436.48462691,0.00016712,2]
[363896031,1748915441765,-1273.02,0.00016712,2]
[363896033,1748915441773,-440.0,0.00016712,2]
[363896035,1748915441782,-440.0,0.00016712,2]
[363896037,1748915441794,-454.71493068,0.00016712,2]
[363896039,1748915441802,-440.0,0.00016712,2]
[363896041,1748915441811,-440.0,0.00016712,2]
[363896043,1748915441820,-484.05,0.00016712,2]
[363896045,1748915441829,-440.0,0.00016712,2]
[363896047,1748915441838,-2793.2,0.00016712,2]
[363896049,1748915441847,-440.0,0.00016712,2]
[363896051,1748915441855,-440.0,0.00016712,2]
[363896053,1748915441864,-1600.29,0.00016712,2]
[363896055,1748915441874,-747.1,0.00016712,2]
[363896057,1748915441883,-440.0,0.00016712,2]
[363896059,1748915441892,-440.0,0.00016712,2]
[363896062,1748915441903,-2131.48118666,0.00016886,2]
[363896064,1748915441913,-168.78,0.00016975,3]
[363896065,1748915441923,-506.34,0.00016975,3]
[363896067,1748915441932,-1350.24,0.00016976,3]
[363896069,1748915441942,-675.12,0.00016976,3]
[363896072,1748915441952,-337.56,0.00016976,3]
[363896074,1748915441961,-440.0,0.00016986,2]
[363896076,1748915441971,-290.0,0.00016986,2]
[363896078,1748915441980,-440.0,0.00016986,2]
[363896080,1748915441989,-440.0,0.00016986,2]
[363896082,1748915441999,-440.0,0.00016986,2]
[363896084,1748915442008,-440.0,0.00016986,2]
[363896086,1748915442017,-440.0,0.00016986,2]
[363896088,1748915442027,-440.0,0.00016986,2]
[363896090,1748915442036,-440.0,0.00016986,2]
[363896092,1748915442045,-440.0,0.00016986,2]
[363896094,1748915442054,-426.51366105,0.00016986,2]
[363896096,1748915442063,-427.51579736,0.00016986,2]
[363896098,1748915442073,-446.64500929,0.00016986,2]
[363896100,1748915442082,-440.0,0.00016986,2]
[363896102,1748915442092,-440.98088637,0.00016986,2]
[363896103,1748915442100,-440.0,0.00016986,2]
[363896105,1748915442109,-440.0,0.00016986,2]
[363896107,1748915442120,-440.0,0.00016986,2]
[363896110,1748915442129,-3072.97,0.00016986,2]
[363896112,1748915442139,-440.0,0.00016986,2]
[363896114,1748915442149,-440.0,0.00016986,2]
[363896116,1748915442158,-440.0,0.00016986,2]
[363896129,1748915442274,-440.0,0.00016986,2]
[363896131,1748915442285,-440.0,0.00016986,2]
[363896133,1748915442295,-673.12,0.00016986,2]
[363896135,1748915442303,-428.49409667,0.00016986,2]
[363896137,1748915442314,-238.26292153,0.00016986,2]
[363896139,1748915442323,-440.0,0.00016986,2]
[363896141,1748915442332,-1140.48,0.00016986,2]
[363896143,1748915442342,-440.0,0.00016986,2]
[363896145,1748915442351,-1166.26,0.00016986,2]
[363896147,1748915442361,-1327.55,0.00016986,2]
[363896149,1748915442371,-440.0,0.00016986,2]
[363896151,1748915442380,-427.69136683,0.00016986,2]
[363896153,1748915442390,-2891.61,0.00016986,2]
[363896155,1748915442400,-413.95841385,0.00016986,2]
[363896157,1748915442410,-820.65,0.00016986,2]
[363896159,1748915442419,-440.0,0.00016986,2]
[363896162,1748915442429,-1856.38,0.00016986,2]
[363896164,1748915442439,-440.0,0.00016986,2]
[363896166,1748915442448,-400.0,0.00016986,2]
[363896168,1748915442458,-487.61,0.00016986,2]
[363896170,1748915442467,-427.28598079,0.00016986,2]
[363896172,1748915442477,-440.0,0.00016986,2]
[363896174,1748915442486,-1499.33,0.00016986,2]
[363896176,1748915442495,-3772.31,0.00016986,2]
[363896178,1748915442505,-578.77,0.00016986,2]
[363896180,1748915442515,-2565.31,0.00016986,2]
[363896182,1748915442524,-437.36812099,0.00016986,2]
[363896184,1748915442534,-929.64,0.00016986,2]
[363896186,1748915442543,-1474.4,0.00016986,2]
[363896188,1748915442553,-440.0,0.00016986,2]
[363896190,1748915442563,-617.96,0.00016986,2]
[363896192,1748915442572,-440.0,0.00016986,2]
[363896194,1748915442582,-440.0,0.00016986,2]
[363896196,1748915442591,-440.0,0.00016986,2]
[363896199,1748915442601,-193.31776634,0.00016986,2]
[363896202,1748915442610,-440.0,0.00016986,2]
[363896204,1748915442620,-1385.9,0.00016986,2]
[363896207,1748915442629,-440.0,0.00016986,2]
[363896208,1748915442638,-440.0,0.00016986,2]
[363896210,1748915442648,-440.0,0.00016986,2]
[363896212,1748915442658,-440.0,0.00016986,2]
[363896214,1748915442667,-440.0,0.00016986,2]
[363896216,1748915442676,-1505.24,0.00016986,2]
[363896218,1748915442686,-573.34,0.00016986,2]
[363896221,1748915442696,-440.0,0.00016986,2]
[363896223,1748915442705,-440.0,0.00016986,2]
[363896225,1748915442715,-440.0,0.00016986,2]
[363896227,1748915442724,-440.0,0.00016986,2]
[363896229,1748915442734,-428.7748947,0.00016986,2]
[363896231,1748915442744,-429.71761714,0.00016986,2]
[363896233,1748915442753,-440.0,0.00016986,2]
[363896235,1748915442763,-440.0,0.00016986,2]
[363896237,1748915442772,-1737.27,0.00016986,2]
[363896239,1748915442781,-429.50117415,0.00016986,2]
[363896241,1748915442795,-490.89,0.00016986,2]
[363896243,1748915442804,-1368.96,0.00016986,2]
[363896245,1748915442814,-1273.02,0.00016986,2]
[363896247,1748915442824,-440.0,0.00016986,2]
[363896249,1748915442833,-480.59798681,0.00016986,2]
[363896251,1748915442843,-440.0,0.00016986,2]
[363896253,1748915442853,-440.0,0.00016986,2]
[363896255,1748915442862,-484.05,0.00016986,2]
[363896257,1748915442872,-440.0,0.00016986,2]
[363896259,1748915442881,-2793.2,0.00016986,2]
[363896261,1748915442891,-440.0,0.00016986,2]
[363896263,1748915442901,-440.0,0.00016986,2]
[363896265,1748915442910,-1600.29,0.00016986,2]
[363896267,1748915442920,-368.14661596,0.00016986,2]
[363896269,1748915442930,-747.1,0.00016986,2]
[363896271,1748915442940,-11331.92557364,0.00016988,2]
[363896273,1748915442950,-500.35468638,0.00017067,2]
[363896275,1748915442959,-500.0,0.00017067,2]
[363896277,1748915442968,-538.6993981,0.00017067,2]
[363896279,1748915442978,-503.176464,0.00017067,2]
[363896281,1748915442987,-501.01752332,0.00017067,2]
[363896283,1748915442996,-500.54772293,0.00017067,2]
[363896285,1748915443006,-2680.44257009,0.000172,2]
[363896287,1748915443015,-2680.44257,0.000172,2]
[363896289,1748915443025,-500.0,0.00017217,2]
[363896290,1748915443034,-502.55333064,0.00017217,2]
[363896292,1748915443044,-500.60057855,0.00017217,2]
[363896294,1748915443053,-500.0,0.0001725,2]
[363896296,1748915443065,-500.0,0.0001725,2]
[363896299,1748915443080,-322.24579073,0.0001725,2]
[363896301,1748915443089,-500.0,0.0001725,2]
[363896303,1748915443100,-500.0,0.0001725,2]
[363896305,1748915443109,-440.0,0.0001726,2]
[363896307,1748915443118,-440.0,0.0001726,2]
[363896309,1748915443128,-404.25133757,0.0001726,2]
[363896311,1748915443137,-328.83011424,0.0001726,2]
[363896313,1748915443147,-440.0,0.0001726,2]
[363896315,1748915443159,-440.0,0.0001726,2]
[363896317,1748915443168,-440.0,0.0001726,2]
[363896319,1748915443178,-440.0,0.0001726,2]
[363896321,1748915443187,-323.9613173,0.0001726,2]
[363896323,1748915443197,-440.0,0.0001726,2]
[363896325,1748915443207,-440.0,0.0001726,2]
[363896327,1748915443218,-440.0,0.0001726,2]
[363896329,1748915443227,-440.0,0.0001726,2]
[363896331,1748915443237,-3072.97,0.0001726,2]
[363896333,1748915443246,-440.0,0.0001726,2]
[363896335,1748915443255,-440.0,0.0001726,2]
[363896337,1748915443264,-299.51514406,0.0001726,2]
[363896339,1748915443274,-440.0,0.0001726,2]
[363896341,1748915443284,-478.76837359,0.0001726,2]
[363896343,1748915443294,-673.12,0.0001726,2]
[363896345,1748915443304,-440.0,0.0001726,2]
[363896347,1748915443314,-1140.48,0.0001726,2]
[363896349,1748915443323,-440.0,0.0001726,2]
[363896351,1748915443332,-1166.26,0.0001726,2]
[363896353,1748915443342,-1327.55,0.0001726,2]
[363896355,1748915443353,-440.0,0.0001726,2]
[363896357,1748915443363,-2891.61,0.0001726,2]
[363896359,1748915443372,-820.65,0.0001726,2]
[363896361,1748915443381,-440.0,0.0001726,2]
[363896363,1748915443391,-1856.38,0.0001726,2]
[363896365,1748915443402,-170.73666732,0.0001726,2]
[363896367,1748915443412,-487.61,0.0001726,2]
[363896369,1748915443421,-440.0,0.0001726,2]
[363896371,1748915443431,-1499.33,0.0001726,2]
[363896373,1748915443439,-3772.31,0.0001726,2]
[363896375,1748915443448,-578.77,0.0001726,2]
[363896377,1748915443458,-2565.31,0.0001726,2]
[363896379,1748915443467,-929.64,0.0001726,2]
[363896381,1748915443476,-1474.4,0.0001726,2]
[363896383,1748915443486,-440.0,0.0001726,2]
[363896385,1748915443495,-617.96,0.0001726,2]
[363896387,1748915443504,-440.0,0.0001726,2]
[363896389,1748915443513,-420.32682135,0.0001726,2]
[363896391,1748915443522,-440.0,0.0001726,2]
[363896393,1748915443532,-440.0,0.0001726,2]
[363896395,1748915443541,-1385.9,0.0001726,2]
[363896396,1748915443550,-440.0,0.0001726,2]
[363896398,1748915443560,-440.0,0.0001726,2]
[363896400,1748915443569,-440.0,0.0001726,2]
[363896402,1748915443578,-440.0,0.0001726,2]
[363896404,1748915443587,-440.0,0.0001726,2]
[363896406,1748915443596,-1505.24,0.0001726,2]
[363896408,1748915443606,-573.34,0.0001726,2]
[363896410,1748915443617,-440.0,0.0001726,2]
[363896412,1748915443627,-440.0,0.0001726,2]
[363896414,1748915443636,-440.0,0.0001726,2]
[363896416,1748915443645,-440.0,0.0001726,2]
[363896418,1748915443656,-440.0,0.0001726,2]
[363896420,1748915443666,-440.0,0.0001726,2]
[363896422,1748915443676,-1737.27,0.0001726,2]
[363896424,1748915443685,-490.89,0.0001726,2]
[363896426,1748915443694,-1368.96,0.0001726,2]
[363896428,1748915443703,-1273.02,0.0001726,2]
[363896430,1748915443712,-440.0,0.0001726,2]
[363896432,1748915443722,-440.0,0.0001726,2]
[363896433,1748915443731,-440.0,0.0001726,2]
[363896435,1748915443741,-484.05,0.0001726,2]
[363896437,1748915443750,-406.95925611,0.0001726,2]
[363896439,1748915443759,-2793.2,0.0001726,2]
[363896441,1748915443769,-326.06816235,0.0001726,2]
[363896443,1748915443778,-440.0,0.0001726,2]
[363896445,1748915443787,-1600.29,0.0001726,2]
[363896447,1748915443800,-747.1,0.0001726,2]
[363896449,1748915443809,-500.0,0.00017315,2]
[363896451,1748915443818,-501.40887103,0.0001735,2]
[363896453,1748915443827,-502.95528671,0.0001735,2]
[363896455,1748915443838,-500.0,0.0001735,2]
[363896457,1748915443847,-500.87238023,0.0001735,2]
[363896459,1748915443856,-500.0,0.0001735,2]
[363896461,1748915443865,-609.40000222,0.0001735,2]
[363896463,1748915443880,-500.34826902,0.0001735,2]
[363896465,1748915443890,-500.0,0.00017377,2]
[363896467,1748915443899,-2680.44257,0.00017383,2]
[363896469,1748915443910,-671.38059693,0.00017414,2]
[363896471,1748915443920,-440.0,0.00017534,2]
[363896473,1748915443929,-440.0,0.00017534,2]
[363896475,1748915443939,-440.0,0.00017534,2]
[363896477,1748915443947,-440.0,0.00017534,2]
[363896479,1748915443957,-396.46435208,0.00017534,2]
[363896481,1748915443968,-440.0,0.00017534,2]
[363896483,1748915443977,-440.0,0.00017534,2]
[363896485,1748915443987,-440.0,0.00017534,2]
[363896487,1748915443996,-440.0,0.00017534,2]
[363896489,1748915444006,-435.79823769,0.00017534,2]
[363896491,1748915444016,-3072.97,0.00017534,2]
[363896493,1748915444025,-440.0,0.00017534,2]
[363896495,1748915444034,-440.0,0.00017534,2]
[363896497,1748915444044,-440.0,0.00017534,2]
[363896499,1748915444052,-673.12,0.00017534,2]
[363896501,1748915444062,-440.0,0.00017534,2]
[363896503,1748915444071,-1140.48,0.00017534,2]
[363896505,1748915444080,-440.0,0.00017534,2]
[363896507,1748915444090,-1166.26,0.00017534,2]
[363896509,1748915444099,-1327.55,0.00017534,2]
[363896511,1748915444108,-440.0,0.00017534,2]
[363896513,1748915444118,-2891.61,0.00017534,2]
[363896515,1748915444128,-820.65,0.00017534,2]
[363896517,1748915444138,-440.0,0.00017534,2]
[363896519,1748915444147,-1856.38,0.00017534,2]
[363896521,1748915444157,-487.61,0.00017534,2]
[363896522,1748915444166,-440.0,0.00017534,2]
[363896524,1748915444175,-1499.33,0.00017534,2]
[363896526,1748915444184,-3772.31,0.00017534,2]
[363896528,1748915444193,-578.77,0.00017534,2]
[363896530,1748915444202,-2565.31,0.00017534,2]
[363896532,1748915444212,-929.64,0.00017534,2]
[363896535,1748915444226,-1474.4,0.00017534,2]
[363896537,1748915444236,-413.38524067,0.00017534,2]
[363896538,1748915444245,-617.96,0.00017534,2]
[363896540,1748915444255,-440.0,0.00017534,2]
[363896542,1748915444264,-440.0,0.00017534,2]
[363896544,1748915444273,-440.0,0.00017534,2]
[363896546,1748915444283,-1385.9,0.00017534,2]
[363896548,1748915444292,-440.0,0.00017534,2]
[363896550,1748915444301,-442.98337971,0.00017534,2]
[363896552,1748915444311,-440.0,0.00017534,2]
[363896554,1748915444320,-522.28930318,0.00017534,2]
[363896556,1748915444330,-441.60760141,0.00017534,2]
[363896558,1748915444339,-1505.24,0.00017534,2]
[363896560,1748915444349,-573.34,0.00017534,2]
[363896562,1748915444359,-440.0,0.00017534,2]
[363896564,1748915444368,-440.0,0.00017534,2]
[363896566,1748915444377,-440.0,0.00017534,2]
[363896568,1748915444387,-440.0,0.00017534,2]
[363896570,1748915444397,-440.0,0.00017534,2]
[363896572,1748915444407,-400.16891728,0.00017534,2]
[363896574,1748915444417,-1737.27,0.00017534,2]
[363896576,1748915444427,-490.89,0.00017534,2]
[363896578,1748915444436,-1368.96,0.00017534,2]
[363896580,1748915444446,-1273.02,0.00017534,2]
[363896582,1748915444455,-440.0,0.00017534,2]
[363896584,1748915444465,-440.0,0.00017534,2]
[363896586,1748915444475,-484.05,0.00017534,2]
[363896588,1748915444485,-440.0,0.00017534,2]
[363896590,1748915444494,-2793.2,0.00017534,2]
[363896592,1748915444503,-440.0,0.00017534,2]
[363896594,1748915444513,-1600.29,0.00017534,2]
[363896596,1748915444523,-500.0,0.00017571,2]
[363896598,1748915444533,-502.40413325,0.00017571,2]
[363896600,1748915444542,-504.50871291,0.00017571,2]
[363896601,1748915444551,-403.66303522,0.00017571,2]
[363896603,1748915444561,-500.0,0.00017571,2]
[363896605,1748915444571,-500.0,0.00017571,2]
[363896607,1748915444582,-501.07755876,0.00017571,2]
[363896609,1748915444592,-500.58051588,0.00017571,2]
[363896611,1748915444601,-500.0,0.00017571,2]
[363896613,1748915444610,-500.73978775,0.00017571,2]